[Event "AI Cup Div-1 2023"]
[Site "Online"]
[Date "2023.09.27"]
[Round "3.4"]
[White "Vachier-Lagrave, Maxime"]
[Black "Carlsen, Magnus"]
[Result "1-0"]
[Annotator "TA"]
[ECO "B45"]
[WhiteElo "2727"]
[BlackElo "2839"]
[PlyCount "97"]
[EventDate "2023.09.18"]
[EventType "k.o."]
[EventCountry "NET"]
[SourceTitle "playchess.com"]
[Source "ChessBase"]
[SourceQuality "1"]
[TimeControl "900+3"]

{[%evp 15,96,20,45,0,0,0,0,0,0,0,0,0,14,-2,-12,-4,87,83,84,88,151,150,162,46,31,40,37,0,0,0,0,0,0,0,0,0,0,0,0,0,0,0,0,0,0,0,0,0,0,0,210,85,109,63,77,70,70,70,68,70,73,72,72,79,93,30,32,4,18,0,0,0,0,0,15,22,163,163,163,168,29978,29979,29999]} 1. e4 {[%emt 0:00:03]} c5 {[%emt 0:00:06]} 2. Nf3 {[%emt 0:00:01]} e6 {[%emt 0:00:01]} 3. d4 {[%emt 0:00:03]} cxd4 {[%emt 0:00:03]} 4. Nxd4 {[%emt 0:00:01]} Nf6 {[%emt 0:00:05]} 5. Nc3 {[%emt 0:00:01]} Nc6 {[%emt 0:00:00]} 6. Nxc6 {[%emt 0:00:10]} bxc6 {[%emt 0:00:01][%cal Bb7c6,Bc6c5][%mdl 32]} 7. e5 {[%emt 0:00:01]} Nd5 {[%emt 0:00:01]} 8. Ne4 {[%emt 0:00:00]} Bb7 {[%emt 0:00:02]} 9. Nd6+ $5 {[%emt 0:00:59][%mdl 4] An interesting side line. B45: Sicilian Four Knights.} Bxd6 {[%emt 0:00:03]} 10. exd6 {[%emt 0:00:00]} c5 {[%emt 0:00:30]} 11. c4 {[%emt 0:00:29] The position is equal.} Nb4 {[%emt 0:00:31]} 12. a3 {[%emt 0:00:59]} Nc6 {[%emt 0:00:01]} 13. Be3 {[%emt 0:00:00]} Qf6 {[%emt 0:00:01]} 14. Qd2 {[%emt 0:00:02]} Rb8 {[%emt 0:00:02]} 15. Bxc5 {[%emt 0:01:31] [#]} Ba8 $146 {[%emt 0:01:53]} (15... Ba6 $11 {remains equal.} 16. Bb4 Nd4) ({Predecessor:} 15... Qe5+ 16. Be3 Ba6 17. Rb1 Rb3 18. Bd3 O-O 19. Bc2 Rfb8 20. Bxb3 Rxb3 21. Rc1 Rxb2 {1-0 Robson,R (2689)-Gelfand,B (2668) Prague Masters 5th 2023 (3)}) 16. Bb4 $1 $16 {[%emt 0:01:45]} Qe5+ {[%emt 0:02:07]} 17. Be2 $1 {[%emt 0:02:23] aiming for Bc3.} (17. Qe2 $6 Qf4 $11) 17... Nxb4 {[%emt 0:00:13]} ({Black should play} 17... Nd4 18. Bc3 Qxe2+ 19. Qxe2 Nxe2 20. Kxe2 Rb3) 18. axb4 {[%emt 0:00:00]} Bxg2 {[%emt 0:00:01]} 19. Ra5 {[%emt 0:01:33]} (19. Rg1 $18 Bf3 20. Rg5) 19... Qe4 $14 {[%emt 0:00:04]} 20. Rg1 {[%emt 0:00:01]} Bf3 {[%emt 0:00:01] Black is weak on the dark squares} 21. Rxg7 {[%emt 0:00:23] Active counter play!} Bxe2 {[%emt 0:02:31]} 22. Qxe2 {[%emt 0:00:01]} Qb1+ {[%emt 0:00:02]} 23. Qd1 {[%emt 0:00:01]} Qxb2 {[%emt 0:00:01]} 24. Rag5 {[%emt 0:00:09] Threatening mate with Rg8+.} Qxb4+ {[%emt 0:00:01]} (24... Rxb4 $2 25. Rg8+ Rxg8 26. Rxg8#) 25. Kf1 {[%emt 0:00:14] Intending Rg8+ and mate.} Qxc4+ {[%emt 0:00:18]} 26. Kg1 {[%emt 0:00:21] White wants to mate with Rg8+.} Rf8 {[%emt 0:00:02] Against Rg8} 27. Rxf7 $1 $40 {[%emt 0:00:08][%mdl 192] Decoy. White has some attack.} Qe4 $1 {[%emt 0:01:00] Threatens to win with ...Rb1.} (27... Rxf7 $2 28. Rg8+ Rf8 29. Qh5+ Kd8 30. Rxf8#) (27... Kxf7 28. Qh5+ Kf6 29. Qh6+ Kf7 30. Qxh7+ Kf6 31. Qg7#) 28. Rgg7 {[%emt 0:02:41] White threatens Re7+ and mate.} Rxf7 {[%emt 0:02:29]} 29. Rg8+ {[%emt 0:00:03]} Rf8 {[%emt 0:00:01]} 30. Qh5+ {[%emt 0:00:00]} Qg6+ $1 {[%emt 0:00:00]} 31. Rxg6 {[%emt 0:00:01]} hxg6 {[%emt 0:00:00]} 32. Qxg6+ $11 {[%emt 0:00:28][%mdl 4096] Endgame KQ-KRR} (32. Qh7 $5 Rf7 $8 33. Qg8+ Rf8 34. Qxg6+ Rf7 35. Qg8+ Rf8 36. Qh7 $11) 32... Kd8 $2 {[%emt 0:00:04]} (32... Rf7 $11 {and Black stays safe.}) 33. Qg5+ {[%emt 0:00:01]} (33. Qg7 $18 {[%cal Rg7f8]} Re8 34. h4) 33... Kc8 $16 {[%emt 0:00:02]} 34. Qc5+ {[%emt 0:00:01]} (34. h4 $16) 34... Kb7 $14 {[%emt 0:00:01]} 35. Qb5+ {[%emt 0:00:07]} Kc8 $1 {[%emt 0:00:50]} 36. Qc4+ {[%emt 0:00:02]} Kb7 {[%emt 0:00:02]} 37. Qc7+ {[%emt 0:00:00]} Ka6 $1 {[%emt 0:00:05]} 38. Qxd7 {[%emt 0:00:00] Black must now prevent Qc6+.} Rfd8 {[%emt 0:00:11]} 39. Qxe6 {[%emt 0:00:34]} Kb6 {[%emt 0:00:05]} 40. Qe7 {[%emt 0:00:31]} (40. d7+ $16 Kc7 41. Qa6) 40... a5 $1 $11 {[%emt 0:00:46]} 41. Qc7+ {[%emt 0:00:13]} Kb5 {[%emt 0:00:01]} 42. Kf1 {[%emt 0:00:13]} (42. d7 $5 {[%cal Rg1g2]}) 42... a4 {[%emt 0:00:01]} 43. Ke2 {[%emt 0:00:02]} a3 {[%emt 0:00:06]} 44. Kd3 {[%emt 0:00:01]} Ra8 {[%emt 0:00:37]} 45. Kd4 {[%emt 0:00:14] And now d7 would win. Really sharp!} a2 {[%emt 0:00:19] [#] This costs Black the game.} (45... Ra4+ $2 46. Kd5 Raa8 47. Qc4+ Ka5 48. Qb3 $18) (45... Rac8 $1 $11 {and Black has nothing to worry.} 46. Qb7+ Ka4) 46. Qb7+ $1 $18 {[%emt 0:00:01]} Ka4 {[%emt 0:00:02] [#]} 47. Qb2 {[%emt 0:00:00]} ({Weaker is} 47. Qc6+ Ka5 48. Qc3+ Kb5 49. Qc5+ Ka6 50. Qa3+ Kb7 51. Qb4+ (51. Qb2+ $2 Kc6 $19) 51... Kc6 52. Qc5+ Kb7 53. Qd5+ (53. Qc7+ Ka6 $11) 53... Kb6 54. Qc5+ Kb7 55. Qd5+ (55. Qc7+ Ka6 $11) 55... Kb6 56. Qc5+ Kb7 $11) 47... Rxd6+ $2 {[%emt 0:00:03]} (47... a1=R $18 48. Qxa1+ Kb5 49. Qb2+ Kc6 50. Qc3+ Kxd6) 48. Kc5 {[%emt 0:00:04][%cal Rb2a2]} Rb6 {[%emt 0:01:36]} 49. Qxa2# {[%emt 0:00:03] Ingenious play by Vachier-Lagrave!   Weighted Error Value: White=0.16 (very precise) /Black=0.32} 1-0

[Event "AI Cup Div-1 2023"]
[Site "Online"]
[Date "2023.09.27"]
[Round "3.5"]
[White "Vachier-Lagrave, Maxime"]
[Black "Carlsen, Magnus"]
[Result "1/2-1/2"]
[Annotator "TA"]
[ECO "B12"]
[WhiteElo "2727"]
[BlackElo "2839"]
[PlyCount "107"]
[EventDate "2023.09.18"]
[EventType "k.o."]
[EventCountry "NET"]
[SourceTitle "playchess.com"]
[Source "ChessBase"]
[SourceQuality "1"]
[TimeControl "900+3"]

{[%evp 12,107,-14,0,-7,-35,-38,-62,-43,-56,-52,-77,-77,-72,-65,-85,-40,-89,-83,-84,-91,-95,-88,-120,-88,-91,-92,-98,-98,-129,-111,-115,-72,-72,-72,-72,-47,-36,-43,-42,-41,-41,-41,-41,-41,-43,-40,-32,-24,-38,-27,-16,0,0,0,0,0,0,0,0,0,0,0,-10,0,0,0,0,0,-20,0,0,0,-29,0,0,0,0,0,0,0,0,0,0,0,0,0,0,0,0,0,0,0,0,0,0,0,0]} 1. e4 {[%emt 0:00:06]} c6 {[%emt 0:06:38]} 2. d4 {[%emt 0:00:08]} d5 {[%emt 0:00:04]} 3. e5 {[%emt 0:00:03]} Bf5 {[%emt 0:00:05]} 4. h4 {[%emt 0:00:10]} h5 {[%emt 0:00:08]} 5. c4 {[%emt 0:00:05]} e6 {[%emt 0:00:06]} 6. Nc3 {[%emt 0:00:04]} Ne7 {[%emt 0:00:10]} 7. Bg5 {[%emt 0:00:31]} Qb6 {[%emt 0:00:16] [#] B12: Caro-Kann: Advance Variation.} 8. Qb3 $146 {[%emt 0:00:36]} ({Predecessor:} 8. Rc1 dxc4 9. Bxc4 Qxb2 10. Nge2 Nd7 11. O-O Rd8 12. Ng3 Nxe5 13. Bb3 Bg6 14. f4 Ng4 15. Qe1 {0-1 Lagarde,M (2631)-Pultinevicius,P (2539) Olympiad-44 Chennai 2022 (10.3)}) 8... Nd7 {[%emt 0:00:08]} (8... Qxd4 $2 9. Qxb7 Qb6 10. Qxa8 $18) 9. Nf3 {[%emt 0:00:24]} Bg4 {[%emt 0:00:06] Black is slightly better.} 10. cxd5 {[%emt 0:00:26]} exd5 {[%emt 0:00:11]} 11. O-O-O {[%emt 0:00:17]} Qxb3 {[%emt 0:00:23]} 12. axb3 {[%emt 0:00:04]} Nf5 {[%emt 0:00:05]} 13. Be2 {[%emt 0:00:57]} Be7 {[%emt 0:00:16]} 14. g3 {[%emt 0:00:23]} (14. Bxe7 $15 {is more appropriate.} Nxe7 15. Ne1) 14... f6 {[%emt 0:00:15]} 15. exf6 {[%emt 0:00:13]} gxf6 {[%emt 0:00:04]} 16. Bf4 {[%emt 0:00:06]} Nf8 {[%emt 0:00:07]} 17. Ng1 {[%emt 0:00:57]} Bxe2 {[%emt 0:00:28]} 18. Ncxe2 {[%emt 0:00:03]} Ne6 {[%emt 0:00:03]} 19. Nf3 {[%emt 0:00:13]} Kf7 {[%emt 0:00:05]} 20. Bd2 {[%emt 0:00:18]} a5 {[%emt 0:00:06]} 21. Kc2 {[%emt 0:00:05]} a4 {[%emt 0:00:04]} 22. Ra1 {[%emt 0:00:13]} axb3+ {[%emt 0:00:11]} 23. Kxb3 {[%emt 0:00:04]} c5 {[%emt 0:00:06]} (23... Rhg8 {simplifies} 24. Rxa8 Rxa8 25. Kc2 Ra4) 24. dxc5 {[%emt 0:00:06]} Nxc5+ {[%emt 0:00:07]} 25. Kc2 {[%emt 0:00:04]} Ne4 {[%emt 0:00:04]} 26. Rxa8 {[%emt 0:00:41]} Rxa8 {[%emt 0:00:05]} 27. Be3 {[%emt 0:01:11]} Rc8+ {[%emt 0:00:26]} 28. Kb1 {[%emt 0:00:04]} Nxe3 {[%emt 0:00:05]} 29. fxe3 {[%emt 0:00:03]} Bd6 {[%emt 0:00:36]} 30. Rd1 {[%emt 0:00:14]} Rc5 {[%emt 0:00:26]} 31. Nf4 {[%emt 0:00:28]} Bxf4 {[%emt 0:00:08]} (31... Nxg3 $5 {[%cal Rd6f4]} 32. Nxd5 Ne4 $15) 32. gxf4 $11 {[%emt 0:00:03][%mdl 4096] Endgame KRN-KRN} Nd6 {[%emt 0:00:26]} 33. Nd4 {[%emt 0:00:08] Inhibits Nf5.} Rc8 {[%emt 0:00:04]} 34. Rd3 {[%emt 0:00:38]} Rg8 {[%emt 0:00:11][%cal Bc8g8,Bg8g4,Bg4h4,Bh4h2][%mdl 32]} 35. Rc3 {[%emt 0:00:19]} Rg4 {[%emt 0:00:13]} 36. Rc5 {[%emt 0:01:20]} Rxh4 {[%emt 0:00:05]} 37. Rxd5 {[%emt 0:00:05]} Nc4 {[%emt 0:00:14]} 38. Rd7+ {[%emt 0:00:43]} Ke8 {[%emt 0:00:05]} 39. Rxb7 {[%emt 0:00:04]} Nxe3 {[%emt 0:00:07]} 40. Ne6 {[%emt 0:00:10]} Rh2 {[%emt 0:00:10]} 41. Ka2 {[%emt 0:00:26]} h4 {[%emt 0:00:04]} 42. Rh7 {[%emt 0:00:16]} Nd1 {[%emt 0:00:17]} 43. Kb3 {[%emt 0:00:06] The position is equal.} Rxb2+ {[%emt 0:00:06]} 44. Kc4 {[%emt 0:00:04]} Ne3+ {[%emt 0:00:05]} 45. Kd4 {[%emt 0:00:10]} Nf5+ {[%emt 0:00:08]} 46. Ke4 {[%emt 0:00:03]} Nd6+ {[%emt 0:00:06]} 47. Kd5 {[%emt 0:00:05]} Rd2+ {[%emt 0:00:05]} 48. Kc6 {[%emt 0:00:05]} Nf5 {[%emt 0:00:04] White must now prevent ...Rd6+.} 49. Nc7+ {[%emt 0:00:10]} Kf8 {[%emt 0:00:07]} 50. Nd5 {[%emt 0:00:04]} h3 {[%emt 0:00:49][%mdl 64] [#] Deflection} 51. Rxh3 {[%emt 0:00:06]} Ne7+ {[%emt 0:00:04]} 52. Nxe7 {[%emt 0:00:04]} Kxe7 {[%emt 0:00:03]} 53. f5 {[%emt 0:00:07]} Rc2+ {[%emt 0:00:09]} 54. Kd5 {[%emt 0:00:06] Weighted Error Value: White=0.07 (flawless) /Black=0.08 (flawless)} 1/2-1/2

[Event "AI Cup Div-1 2023"]
[Site "Online"]
[Date "2023.09.29"]
[Round "4.1"]
[White "Carlsen, Magnus"]
[Black "Vachier-Lagrave, Maxime"]
[Result "0-1"]
[Annotator "TA"]
[ECO "D27"]
[WhiteElo "2839"]
[BlackElo "2727"]
[PlyCount "98"]
[EventDate "2023.09.18"]
[EventType "k.o."]
[EventCountry "NET"]
[SourceTitle "playchess.com"]
[Source "ChessBase"]
[SourceQuality "1"]
[TimeControl "900+3"]

{[%evp 23,98,0,0,0,0,0,-19,-16,8,8,14,13,14,-3,0,0,0,0,35,41,50,45,50,25,24,23,25,8,39,36,36,36,39,0,0,0,0,0,0,0,-8,-12,-12,-97,-97,-143,-143,-143,-143,-143,-143,-402,-229,-12824,-12824,-12830,-12830,-12835,-12831,-12831,-12831,-12833,-12834,-12843,-12843,-12844,-12844,-27999,-27999,-27999,-27999,-27999,-27999,-27999,-27999,-27999,-27999]} 1. d4 {[%emt 0:00:08]} d5 {[%emt 0:00:08]} 2. c4 {[%emt 0:00:02]} dxc4 {[%emt 0:00:01]} 3. e3 {[%emt 0:00:48]} Nf6 {[%emt 0:00:10]} 4. Bxc4 {[%emt 0:00:04]} e6 {[%emt 0:00:00]} 5. Nf3 {[%emt 0:00:01]} a6 {[%emt 0:00:01]} 6. O-O {[%emt 0:00:31]} c5 {[%emt 0:00:03]} 7. a4 {[%emt 0:00:03]} Nc6 {[%emt 0:00:50]} 8. Qe2 {[%emt 0:00:02]} cxd4 {[%emt 0:00:12]} 9. Rd1 {[%emt 0:00:02]} Be7 {[%emt 0:00:17]} 10. exd4 {[%emt 0:00:19]} O-O {[%emt 0:00:04]} 11. Nc3 {[%emt 0:00:01]} Nb4 {[%emt 0:00:01]} 12. Ne5 {[%emt 0:02:16] 12.Ne5 is better than 12.Bg5.} b6 {[%emt 0:00:41]} 13. Ne4 {[%emt 0:00:30] D27: Queen's Gambit Accepted: Classical main line: 7 e4!? and 7 a4.} Bb7 {[%emt 0:00:37]} 14. Nxf6+ {[%emt 0:00:52]} Bxf6 {[%emt 0:00:04]} 15. Ra3 {[%emt 0:00:03] [#] The position is equal.} b5 $146 {[%emt 0:01:27][%mdl 64] [#] Deflection} ({Predecessor:} 15... Rc8 16. Rh3 g6 17. Ng4 h5 18. Ne5 Bd5 19. b3 Qc7 20. Bf4 Bxc4 21. bxc4 Bxe5 22. Bxe5 Qxc4 {1-0 Khurtsidze,N (2440)-Krivec,J (2268) Athens Acropolis op (Women) 2003 (9)}) 16. axb5 {[%emt 0:00:08]} axb5 {[%emt 0:00:02]} 17. Bxb5 {[%emt 0:00:08] Nd7 is the strong threat.} Qd5 {[%emt 0:00:28][%csl Gb7][%cal Rd5g2]} 18. Nf3 {[%emt 0:03:22]} Rfc8 {[%emt 0:00:53]} 19. Rxa8 {[%emt 0:00:41]} Bxa8 {[%emt 0:00:00]} 20. Bd2 {[%emt 0:00:16]} Rc2 {[%emt 0:02:23]} 21. Qf1 $1 {[%emt 0:00:37]} Qd6 {[%emt 0:01:51]} (21... Rxb2 $2 22. Bc3 Qb3 23. Bxb2 Bxf3 24. Rc1 $18) 22. Rc1 {[%emt 0:02:09]} Be4 {[%emt 0:01:28]} 23. Ba4 {[%emt 0:00:47]} Rxc1 {[%emt 0:00:11]} 24. Qxc1 {[%emt 0:00:01] And now Qc8+ would win.} Nc6 {[%emt 0:00:14]} 25. Bf4 {[%emt 0:01:26]} Qd5 {[%emt 0:01:07]} (25... Nxd4 $5 {[%cal Rd4e2]} 26. Qc8+ Qf8 27. Qxf8+ Kxf8 28. Nxd4 Bxd4 $11) 26. Bxc6 {[%emt 0:00:05]} Qxc6 {[%emt 0:00:00]} 27. Qxc6 {[%emt 0:00:00]} Bxc6 {[%emt 0:00:00]} 28. Bd6 {[%emt 0:00:01]} Bxf3 {[%emt 0:00:53]} 29. gxf3 {[%emt 0:00:01] Strongly threatening Bc5.} Bxd4 $11 {[%emt 0:00:01][%mdl 4096] Endgame KB-KB} 30. b4 {[%emt 0:00:01]} f6 {[%emt 0:00:00]} 31. f4 {[%emt 0:00:11]} Kf7 {[%emt 0:00:03]} 32. Kg2 {[%emt 0:00:04]} Ke8 {[%emt 0:00:06]} 33. b5 {[%emt 0:00:03]} (33. Kf1 $11 {keeps the balance.}) 33... Kd7 $17 {[%emt 0:00:01]} 34. Bb4 {[%emt 0:00:02]} (34. Bf8 $142) 34... Kc7 {[%emt 0:00:12]} 35. Ba5+ {[%emt 0:00:12]} Kd6 {[%emt 0:00:04]} 36. Kf3 {[%emt 0:00:10]} Kc5 {[%emt 0:00:26]} 37. Ke4 $2 {[%emt 0:00:19][%mdl 8192] Now White is beyond hope.} (37. b6 $17 Kc6 38. Bb4) 37... Bxf2 $19 {[%emt 0:00:03]} (37... Kxb5 38. Kxd4 Kxa5 39. Kc5 $11) 38. f5 $2 {[%emt 0:00:01]} (38. b6 Kc6 39. b7 Kxb7 40. f5) 38... exf5+ {[%emt 0:00:56]} ({Worse is} 38... Kxb5 39. fxe6 Kc6 40. Bb4 $15) 39. Kxf5 {[%emt 0:00:01]} Kxb5 {[%emt 0:00:01]} 40. Bc3 {[%emt 0:00:03]} Bh4 {[%emt 0:00:09]} 41. Ke6 {[%emt 0:00:24]} Kc4 {[%emt 0:00:01]} 42. Ba5 {[%emt 0:00:05]} Kd3 {[%emt 0:00:28]} 43. Kf7 {[%emt 0:00:02]} f5 {[%emt 0:00:02][%cal Bf6f5,Bf5f4,Bf4f3][%mdl 32]} 44. Kxg7 {[%emt 0:00:03]} f4 {[%emt 0:00:00]} 45. Kxh7 {[%emt 0:00:05]} f3 {[%emt 0:00:03] Black mates.} 46. Bb6 {[%emt 0:00:02]} Bg5 {[%emt 0:00:11]} 47. Bf2 {[%emt 0:00:07]} Ke2 {[%emt 0:00:01]} 48. Bg3 {[%emt 0:00:01]} Bf4 {[%emt 0:00:08][%mdl 64] [#] Deflection, Promotion} 49. Bh4 {[%emt 0:00:01]} Bd2 {[%emt 0:00:13] Weighted Error Value: White=0.44/Black=0.04 (flawless)} (49... Bxh2 $2 {perishes.} 50. Kg6 $19) 0-1

[Event "AI Cup Div-1 2023"]
[Site "Online"]
[Date "2023.09.29"]
[Round "4.2"]
[White "Vachier-Lagrave, Maxime"]
[Black "Carlsen, Magnus"]
[Result "1/2-1/2"]
[Annotator "TA"]
[ECO "C67"]
[WhiteElo "2727"]
[BlackElo "2839"]
[PlyCount "111"]
[EventDate "2023.09.18"]
[EventType "k.o."]
[EventCountry "NET"]
[SourceTitle "playchess.com"]
[Source "ChessBase"]
[SourceQuality "1"]
[TimeControl "900+3"]

{[%evp 12,111,20,19,32,29,37,37,43,15,24,25,33,24,18,21,19,17,17,16,25,16,46,10,1,0,0,0,2,0,0,-15,-18,-22,-19,-21,-18,-20,-10,-10,-10,-11,-12,-24,-13,-19,-18,-19,0,0,0,-11,0,0,0,0,0,0,11,0,0,0,0,0,0,0,0,0,0,0,0,0,0,0,0,0,0,0,0,0,0,0,0,0,0,0,0,0,0,0,0,0,0,0,0,0,0,0,0,0,0,0]} 1. e4 {[%emt 0:00:04]} e5 {[%emt 0:00:04]} 2. Nf3 {[%emt 0:00:01]} Nc6 {[%emt 0:00:01]} 3. Bb5 {[%emt 0:00:01]} Nf6 {[%emt 0:00:00]} 4. O-O {[%emt 0:00:12]} Nxe4 {[%emt 0:00:01]} 5. Re1 {[%emt 0:00:01]} Nd6 {[%emt 0:00:02]} 6. Nxe5 {[%emt 0:00:00]} Be7 {[%emt 0:00:00]} 7. Bf1 {[%emt 0:00:01]} Nf5 {[%emt 0:00:01] C67: Ruy Lopez: Berlin Defence: 4 0-0 Nxe4.} 8. Nf3 {[%emt 0:00:08]} d5 {[%emt 0:00:04]} 9. d4 {[%emt 0:00:04]} O-O {[%emt 0:00:01] White is slightly better.} 10. h3 {[%emt 0:00:08]} h6 {[%emt 0:01:59] [#]} 11. c3 $146 {[%emt 0:00:27]} ({Predecessor:} 11. a4 a6 12. Bf4 Be6 13. c3 Bd6 14. Bxd6 Nxd6 15. Nbd2 Bf5 16. Qb3 Ne7 17. Re3 {½-½ Kislinsky,A (2505)-Pashikian,A (2592) Yerevan op 2nd 2017 (6)}) 11... Re8 {[%emt 0:00:10]} 12. Bd3 {[%emt 0:00:09]} Bd6 {[%emt 0:00:09]} 13. Rxe8+ {[%emt 0:00:38]} Qxe8 {[%emt 0:00:01]} 14. Qc2 {[%emt 0:00:07]} Qe6 {[%emt 0:00:12]} 15. Nbd2 {[%emt 0:00:07][%cal Bb1d2,Bd2f1,Bf1h2,Bh2g4][%mdl 32]} Qf6 {[%emt 0:00:10]} 16. Nf1 {[%emt 0:00:05]} Nfe7 {[%emt 0:00:02][%cal Oc8h3]} 17. N1h2 {[%emt 0:01:03]} Bf5 {[%emt 0:00:14]} 18. Ng4 {[%emt 0:00:09]} Qg6 {[%emt 0:00:11][%csl LRd3,LRg4]} 19. Bxf5 {[%emt 0:00:03]} Qxf5 {[%emt 0:00:05]} 20. Qxf5 {[%emt 0:00:43]} Nxf5 {[%emt 0:00:02]} 21. Bd2 {[%emt 0:00:00]} f6 {[%emt 0:00:19]} 22. Kf1 {[%emt 0:00:10]} Kf7 {[%emt 0:00:17]} 23. Ke2 {[%emt 0:00:09]} Nce7 {[%emt 0:00:39]} 24. Ne3 {[%emt 0:01:06]} Nxe3 {[%emt 0:00:07]} 25. Kxe3 {[%emt 0:00:06]} g5 {[%emt 0:00:18]} 26. Kd3 {[%emt 0:00:04]} h5 {[%emt 0:00:02]} 27. Rh1 {[%emt 0:00:40]} Nf5 {[%emt 0:01:01]} 28. Ne1 {[%emt 0:00:27] The position is equal.} c6 {[%emt 0:03:16]} 29. Nc2 {[%emt 0:00:21]} Nh4 {[%emt 0:00:01]} 30. g3 {[%emt 0:00:12]} Nf5 {[%emt 0:00:14]} 31. Ne3 {[%emt 0:00:05]} Kg6 {[%emt 0:00:05]} 32. Nxf5 {[%emt 0:01:17]} Kxf5 $11 {[%emt 0:00:00][%mdl 4096] Endgame KRB-KRB} 33. Re1 {[%emt 0:00:00]} Rh8 {[%emt 0:00:15]} 34. b3 {[%emt 0:00:11]} b5 {[%emt 0:00:12]} 35. a4 {[%emt 0:01:00]} bxa4 {[%emt 0:00:04]} 36. bxa4 {[%emt 0:00:03]} Rb8 {[%emt 0:00:07]} 37. g4+ {[%emt 0:00:22][%mdl 64] [#] Deflection} hxg4 {[%emt 0:00:23]} 38. hxg4+ {[%emt 0:00:00]} Kxg4 {[%emt 0:00:01] ...Bf4 is the strong threat.} 39. Re6 {[%emt 0:00:02][%csl LRd6,LRf6]} Bf4 {[%emt 0:00:01] Threatens to win with ...Bxd2.} 40. Rxf6 {[%emt 0:00:23]} Rb6 {[%emt 0:00:22][%cal Oc6c5]} 41. a5 {[%emt 0:00:23]} Ra6 {[%emt 0:00:02]} 42. Bxf4 {[%emt 0:01:46]} gxf4 {[%emt 0:00:01] KR-KR} 43. Ke2 {[%emt 0:00:01]} Rxa5 {[%emt 0:00:24] [#] aiming for ...Ra2+.} 44. Rg6+ {[%emt 0:00:01]} Kf5 {[%emt 0:00:07]} 45. Rxc6 {[%emt 0:00:01]} Ra2+ {[%emt 0:00:50]} 46. Kf3 {[%emt 0:00:01]} Rd2 {[%emt 0:00:00]} 47. Rd6 {[%emt 0:01:00]} Rd3+ {[%emt 0:00:05]} 48. Ke2 {[%emt 0:00:01]} Rxc3 {[%emt 0:00:05]} 49. f3 {[%emt 0:00:00]} Re3+ {[%emt 0:00:16]} 50. Kf2 {[%emt 0:00:01]} Ra3 {[%emt 0:00:19]} 51. Rxd5+ {[%emt 0:00:03]} Ke6 {[%emt 0:00:01]} 52. Re5+ {[%emt 0:00:02]} Kd6 {[%emt 0:00:00]} 53. Rf5 {[%emt 0:00:22]} Ra2+ {[%emt 0:00:03]} 54. Ke1 {[%emt 0:00:01]} a5 {[%emt 0:00:01]} 55. Kd1 $1 {[%emt 0:00:14]} a4 {[%emt 0:00:05]} 56. Kc1 {[%emt 0:00:03] Weighted Error Value: White=0.03 (flawless) /Black=0.03 (flawless)} 1/2-1/2